{"text_format":"3","workbook":"xlsx","n_sheets":2,"sheets":["Протокол ШЭ ВОШ по предмету","Лист2"],"not_rendered":{"external_links":2,"defined_names":1},"read":"whole","date_system":"1900"}

{"sheet":"Протокол ШЭ ВОШ по предмету","index":0,"n_rows":36,"n_cols":12,"rows_kept":36,"merged":[[0,0,0,10],[2,6,2,11],[3,6,3,10]]}
["Протокол проведения школьного этапа Всероссийской и Республиканской олимпиад школьников "]
[]
[{"$nulls":6},"по предмету: Английский язык"]
[{"$nulls":6},"Дата проведения:  08.10.2021г."]
["№","Фамилия","Пол","Участник с ОВЗ (да/нет)","Класс обучения","Класс участия","Балл","Максимальный балл","Статус","Призёр муниципального этапа прошлого года","ФИО учителя","Место работы учителя"]
[1,"Азизова","ж","нет",4,4,11,50,"участник","нет","Кондратьева О. Н.","МБОУ \"СОШ№5\""]
[2,"Климанов","м","нет",4,4,14,50,"участник","нет","Кондратьева О. Н.","МБОУ \"СОШ№5\""]
[3,"Копылова","ж","нет",4,4,11,50,"участник","нет","Кондратьева О. Н.","МБОУ \"СОШ№5\""]
[4,"Титов","м","нет",4,4,16,50,"участник","нет","Кондратьева О. Н.","МБОУ \"СОШ№5\""]
[5,"Исламов ","м","нет",4,4,12,50,"участник","нет","Чернова О. Н.","МБОУ \"СОШ№5\""]
[6,"Шамсутдинова","ж","нет",4,4,18,50,"участник","нет","Чернова О. Н.","МБОУ \"СОШ №5\""]
[7,"Матвеева ","ж","нет",{"$f":"'[1]Протокол ШЭ ВОШ по предмету'!H4","v":5},{"$f":"'[1]Протокол ШЭ ВОШ по предмету'!I4","v":5},{"$f":"'[1]Протокол ШЭ ВОШ по предмету'!J4","v":15},{"$f":"'[1]Протокол ШЭ ВОШ по предмету'!K4","v":64},"участник","нет","Чернова О. Н.","МБОУ \"СОШ№5\""]
[8,{"$f":"'[1]Протокол ШЭ ВОШ по предмету'!B5","v":"Хисматуллина"},{"$f":"'[1]Протокол ШЭ ВОШ по предмету'!F5","v":"ж"},{"$f":"'[1]Протокол ШЭ ВОШ по предмету'!G5","v":"нет"},{"$f":"'[1]Протокол ШЭ ВОШ по предмету'!H5","v":5},{"$f":"'[1]Протокол ШЭ ВОШ по предмету'!I5","v":5},{"$f":"'[1]Протокол ШЭ ВОШ по предмету'!J5","v":12},{"$f":"'[1]Протокол ШЭ ВОШ по предмету'!K5","v":64},"участник","нет","Чернова О. Н.","МБОУ \"СОШ№5\""]
[9,"Бострикова","ж","нет",5,5,50,64,"победитель","призер","Кондратьева О. Н.","МБОУ \"СОШ №5\""]
[10,{"$f":"'[2]Протокол ШЭ ВОШ по предмету'!B6","v":"Самигуллина"},{"$f":"'[2]Протокол ШЭ ВОШ по предмету'!F6","v":"ж"},{"$f":"'[2]Протокол ШЭ ВОШ по предмету'!G6","v":"нет"},5,5,{"$f":"'[2]Протокол ШЭ ВОШ по предмету'!J6","v":32},{"$f":"'[2]Протокол ШЭ ВОШ по предмету'!K6","v":64},"призер","нет","Кондратьева О. Н.","МБОУ \"СОШ№5\""]
[11,{"$f":"'[2]Протокол ШЭ ВОШ по предмету'!B7","v":"Архипов "},{"$f":"'[2]Протокол ШЭ ВОШ по предмету'!F7","v":"м"},{"$f":"'[2]Протокол ШЭ ВОШ по предмету'!G7","v":"нет"},6,6,{"$f":"'[2]Протокол ШЭ ВОШ по предмету'!J7","v":54},{"$f":"'[2]Протокол ШЭ ВОШ по предмету'!K7","v":64},"победитель","призер","Кондратьева О. Н.","МБОУ \"СОШ№5\""]
[12,{"$f":"'[1]Протокол ШЭ ВОШ по предмету'!B6","v":"Хабирова "},{"$f":"'[1]Протокол ШЭ ВОШ по предмету'!F6","v":"ж"},{"$f":"'[1]Протокол ШЭ ВОШ по предмету'!G6","v":"нет"},6,{"$f":"'[1]Протокол ШЭ ВОШ по предмету'!I6","v":6},{"$f":"'[1]Протокол ШЭ ВОШ по предмету'!J6","v":33},{"$f":"'[1]Протокол ШЭ ВОШ по предмету'!K6","v":64},"призер","нет","Чернова О. Н.","МБОУ \"СОШ№%\""]
[13,{"$f":"'[1]Протокол ШЭ ВОШ по предмету'!B7","v":"Ялунина"},{"$f":"'[1]Протокол ШЭ ВОШ по предмету'!F7","v":"ж"},{"$f":"'[1]Протокол ШЭ ВОШ по предмету'!G7","v":"нет"},6,{"$f":"'[1]Протокол ШЭ ВОШ по предмету'!I7","v":6},{"$f":"'[1]Протокол ШЭ ВОШ по предмету'!J7","v":39},{"$f":"'[1]Протокол ШЭ ВОШ по предмету'!K7","v":64},"призер","нет","Чернова О. Н.","МБОУ \"СОШ№%\""]
[14,"Гайсин","м","нет","б",6,40,64,"призер","нет","Пономарева Л. Н.","МБОУ \"СОШ№5\"                                     "]
[15,{"$f":"'[2]Протокол ШЭ ВОШ по предмету'!B8","v":"Анисахаров"},{"$f":"'[2]Протокол ШЭ ВОШ по предмету'!F8","v":"м"},{"$f":"'[2]Протокол ШЭ ВОШ по предмету'!G8","v":"нет"},7,7,{"$f":"'[2]Протокол ШЭ ВОШ по предмету'!J8","v":20},{"$f":"'[2]Протокол ШЭ ВОШ по предмету'!K8","v":75},"участник","нет","Кондратьева О. Н.","МБОУ \"СОШ №5\""]
[16,{"$f":"'[2]Протокол ШЭ ВОШ по предмету'!B9","v":"Ситдикова"},{"$f":"'[2]Протокол ШЭ ВОШ по предмету'!F9","v":"ж"},{"$f":"'[2]Протокол ШЭ ВОШ по предмету'!G9","v":"нет"},7,7,58,{"$f":"'[2]Протокол ШЭ ВОШ по предмету'!K9","v":75},"победитель","нет","Кондратьева О. Н.","МБОУ \"СОШ№5\""]
[17,"Скучаева ","ж","нет",8,8,24,75,"участник","нет","Пономарева Л. Н.","МБОУ \"СОШ№5\"                                     "]
[18,{"$f":"'[2]Протокол ШЭ ВОШ по предмету'!B10","v":"Васильева"},{"$f":"'[2]Протокол ШЭ ВОШ по предмету'!F10","v":"ж"},{"$f":"'[2]Протокол ШЭ ВОШ по предмету'!G10","v":"нет"},9,9,{"$f":"'[2]Протокол ШЭ ВОШ по предмету'!J10","v":42},{"$f":"'[2]Протокол ШЭ ВОШ по предмету'!K10","v":79},"призер","нет","Кондратьева О. Н.","МБОУ \"СОШ№5\""]
[19,{"$f":"'[2]Протокол ШЭ ВОШ по предмету'!B11","v":"Слабодина"},{"$f":"'[2]Протокол ШЭ ВОШ по предмету'!F11","v":"ж"},{"$f":"'[2]Протокол ШЭ ВОШ по предмету'!G11","v":"нет"},9,9,60,{"$f":"'[2]Протокол ШЭ ВОШ по предмету'!K11","v":79},"победитель","нет","Кондратьева О. Н.","МБОУ \"СОШ№5\""]
[20,"Мухутдинов","м","нет",10,10,64,79,"победитель","нет","Пономарева Л. Н.","МБОУ \"СОШ№5\"                                     "]
[21,"Малова","ж","нет",10,10,61,79,"победитель","призер","Пономарева Л. Н.","МБОУ \"СОШ№5\"                                     "]
[22,{"$f":"'[2]Протокол ШЭ ВОШ по предмету'!B12","v":"Денисов"},{"$f":"'[2]Протокол ШЭ ВОШ по предмету'!F12","v":"м"},{"$f":"'[2]Протокол ШЭ ВОШ по предмету'!G12","v":"нет"},11,11,61,{"$f":"'[2]Протокол ШЭ ВОШ по предмету'!K12","v":79},"победитель","нет","Кондратьева О. Н.","МБОУ\"СОШ№5\""]
[23,{"$f":"'[2]Протокол ШЭ ВОШ по предмету'!B13","v":"Иванов"},{"$f":"'[2]Протокол ШЭ ВОШ по предмету'!F13","v":"м"},{"$f":"'[2]Протокол ШЭ ВОШ по предмету'!G13","v":"нет"},11,11,{"$f":"'[2]Протокол ШЭ ВОШ по предмету'!J13","v":64},{"$f":"'[2]Протокол ШЭ ВОШ по предмету'!K13","v":79},"победитель","нет","Кондратьева О. Н.","МБОУ \"СОШ№5\""]
[24,{"$f":"'[2]Протокол ШЭ ВОШ по предмету'!B14","v":"Халикова"},{"$f":"'[2]Протокол ШЭ ВОШ по предмету'!F14","v":"ж"},{"$f":"'[2]Протокол ШЭ ВОШ по предмету'!G14","v":"нет"},11,11,{"$f":"'[2]Протокол ШЭ ВОШ по предмету'!J14","v":53},{"$f":"'[2]Протокол ШЭ ВОШ по предмету'!K14","v":79},"призер","нет","Кондратьева О. Н.","МБОУ \"СОШ№5\""]
[]
[]
[{"$nulls":8},"Члены жюри:","Л.Н.Пономарева- "]
[{"$nulls":9},"О.Н.Кондратьева"]
[{"$nulls":9}," О.Н.Чернова"]
[{"$nulls":9},"А.М.Гисматуллина"]
[{"$nulls":9},"З.А.Ялалтдинова"]

{"sheet":"Лист2","index":1,"n_rows":3,"n_cols":7,"rows_kept":3}
["м",null,"Победитель",null,"да",null,"Победитель"]
["ж",null,"Призер",null,"нет",null,"Призер"]
[null,null,"Участник"]